[Event "Khanty-Mansiysk FIDE GP (Women)"]
[Site "Khanty-Mansiysk"]
[Date "2014.04.09"]
[Round "1"]
[White "Muzychuk, Anna"]
[Black "Batchimeg, Tuvshintugs"]
[Result "1-0"]
[ECO "C55"]
[WhiteElo "2560"]
[BlackElo "2340"]
[Annotator "ChessBase Website"]
[PlyCount "161"]
[EventDate "2014.04.09"]
[EventType "tourn"]
[EventRounds "11"]
[EventCountry "RUS"]
[EventCategory "10"]
[SourceTitle "CBM 160"]
[Source "ChessBase"]
[SourceDate "2014.05.15"]
[SourceVersion "1"]
[SourceVersionDate "2014.05.15"]
[SourceQuality "1"]
[TimeControl "40/5400+30:1800+30"]
[WhiteClock "1:30:00"]
[BlackClock "1:30:00"]

1. e4 {[%emt 0:00:00]} e5 {[%emt 0:00:00]} 2. Nf3 {[%emt 0:00:00]} Nc6 {
[%emt 0:00:00]} 3. Bc4 {[%emt 0:00:00]} Nf6 {[%emt 0:00:31]} 4. d3 {[%emt 0:00:
21]} Be7 {[%emt 0:00:29]} 5. O-O {[%emt 0:00:20]} d6 {[%emt 0:00:53]} 6. a4 {
[%emt 0:02:22]} Na5 {[%emt 0:04:08]} (6... O-O 7. Re1 Na5 8. Ba2 c5 9. c3 a6
10. d4 Qc7 11. Na3 Bg4 12. h3 Bh5 13. dxe5 dxe5 14. Nc4 Nxc4 15. Bxc4 Rad8 16.
Qe2 Bg6 17. Nd2 Rd7 18. a5 Nh5 19. Nf1 Qd8 20. Be3 h6 21. Red1 Rxd1 22. Rxd1
Qc8 23. Qg4 Qxg4 24. hxg4 Nf6 25. f3 Rc8 26. Nd2 Kf8 27. Bb3 Nh7 28. Nc4 f6 29.
Rd7 Rb8 30. Nb6 Be8 31. Bd5 Ng5 32. Rxb7 Rxb7 33. Bxb7 Ne6 34. Bxa6 Nc7 35. Bb7
Bb5 36. Nd5 {Saric,I (2637)-Zhao,X (2567) Wijk aan Zee 2014 1-0}) 7. Ba2 {
[%emt 0:01:13]} Be6 $146 {[%emt 0:03:17]} (7... c5 8. Nc3 Nc6 9. Nd5 Nxd5 10.
Bxd5 O-O 11. c3 Bf6 12. Bd2 Ne7 13. Bc4 d5 14. exd5 Nxd5 15. a5 Rb8 16. Re1 b5
17. axb6 Nxb6 18. Bb3 Qxd3 19. Bc2 Qd6 20. Qe2 Bb7 21. Rxa7 g6 22. Bh6 Rfe8 23.
Ng5 Nc8 24. Ra4 Qb6 25. Ne4 Bxe4 26. Bxe4 Qxb2 27. Qf3 Bg7 28. Bd5 Rf8 29. Bxg7
Kxg7 30. Qe3 f6 31. Rh4 h5 32. Qxc5 Qb6 33. Rc4 Qxc5 34. Rxc5 Nd6 35. Rc7+ Kh6
36. Rc6 Nf5 37. Be6 {Howell,D (2639)-Hebden,M (2555) Torquay 2013 1/2-1/2}) 8.
b4 {[%emt 0:13:55]} Bxa2 {[%emt 0:03:13]} 9. Rxa2 {[%emt 0:00:07]} Nc6 {
[%emt 0:00:06]} 10. c3 {[%emt 0:01:34]} a6 {[%emt 0:03:16]} 11. Re1 {[%emt 0:
04:48]} O-O {[%emt 0:03:37]} 12. Qb3 {[%emt 0:03:02]} Re8 {[%emt 0:05:07]} 13.
c4 {[%emt 0:05:02]} a5 {[%emt 0:10:26]} 14. b5 {[%emt 0:00:19]} Nb4 {[%emt 0:
01:29][%csl Rb4] Black's offside knight on b4 was the bane of her existence,
as it was impossible to ever bring it back to the game. Mainly due to this she
was slowly crushed on the kingside where she was simply playing down a piece.}
15. Rd2 {[%emt 0:04:16]} Nd7 {[%emt 0:06:27]} 16. Nc3 {[%emt 0:01:17]} c5 {
[%emt 0:22:20]} 17. Qd1 {[%emt 0:07:18]} Nf8 {[%emt 0:06:26]} 18. Qe2 {[%emt 0:
02:48]} Bg5 {[%emt 0:06:04]} 19. Nxg5 {[%emt 0:04:42]} Qxg5 {[%emt 0:00:02]}
20. Rdd1 {[%emt 0:01:16]} Qg6 {[%emt 0:01:34]} 21. f4 {[%emt 0:08:31]} exf4 {
[%emt 0:00:56]} 22. Bxf4 {[%emt 0:00:48]} Qf6 {[%emt 0:03:27]} 23. Qd2 {
[%emt 0:00:23]} Ng6 {[%emt 0:02:23]} 24. Rf1 {[%emt 0:03:49]} Nxf4 {[%emt 0:03:
12]} 25. Rxf4 {[%emt 0:00:18]} Qe5 {[%emt 0:04:21]} 26. Rf5 {[%emt 0:04:40]}
Qd4+ {[%emt 0:01:33]} 27. Kh1 {[%emt 0:00:33]} g6 {[%emt 0:00:24]} 28. Rf3 {
[%emt 0:02:08]} b6 {[%emt 0:00:39]} 29. Ne2 {[%emt 0:04:56]} Qe5 {[%emt 0:00:
11]} 30. Rdf1 {[%emt 0:00:28]} Ra7 {[%emt 0:00:44]} 31. Ng1 {[%emt 0:03:23]}
Qd4 {[%emt 0:01:02]} 32. Ne2 {[%emt 0:06:49]} Qe5 {[%emt 0:00:10]} 33. Rg3 {
[%emt 0:00:26]} Rd7 {[%emt 0:00:54]} 34. Nf4 {[%emt 0:01:28]} Ree7 {[%emt 0:02:
41]} 35. h4 {[%emt 0:04:57]} Qf6 {[%emt 0:02:13]} 36. h5 {[%emt 0:02:38]} Re5 {
[%emt 0:01:45]} 37. Qe2 {[%emt 0:01:54]} Qh4+ {[%emt 0:00:33]} 38. Rh3 {
[%emt 0:00:07]} Qg5 {[%emt 0:00:21]} 39. Qf3 {[%emt 0:03:15]} Qf6 {[%emt 0:01:
25]} 40. Qg4 {[%emt 0:00:00]} Rd8 {[%emt 0:00:00]} 41. Kh2 {[%emt 0:10:57]} Qg5
{[%emt 0:06:00]} 42. Qf3 {[%emt 0:01:57]} Qf6 {[%emt 0:14:06]} 43. Rg3 {
[%emt 0:05:39]} Qh4+ {[%emt 0:05:09]} 44. Kg1 {[%emt 0:01:04]} Qf6 {[%emt 0:00:
38]} 45. Qg4 {[%emt 0:01:33]} Qg7 {[%emt 0:04:42]} 46. Qh4 {[%emt 0:02:29]}
Rde8 {[%emt 0:01:26]} 47. Qh3 {[%emt 0:05:07]} R5e7 {[%emt 0:00:59]} 48. Kh1 {
[%emt 0:01:18]} Qh6 {[%emt 0:01:17]} 49. Qf5 {[%emt 0:03:06]} Kh8 {[%emt 0:00:
54]} 50. Qf6+ {[%emt 0:00:34]} Qg7 {[%emt 0:00:03]} 51. Qxd6 {[%emt 0:00:43]}
Qe5 {[%emt 0:01:08]} 52. Qxb6 {[%emt 0:03:58]} g5 {[%emt 0:00:24]} 53. Ne2 {
[%emt 0:00:21]} Re6 {[%emt 0:00:07]} 54. Qb7 {[%emt 0:01:20]} R6e7 {[%emt 0:00:
16]} 55. Qb6 {[%emt 0:00:15]} Re6 {[%emt 0:00:05]} 56. Qxa5 {[%emt 0:00:25]}
Rh6 {[%emt 0:00:14]} 57. Qa7 {[%emt 0:00:51]} Rxh5+ {[%emt 0:00:49]} 58. Kg1 {
[%emt 0:00:01]} Re7 {[%emt 0:00:27]} 59. Qb6 {[%emt 0:00:32]} Kg7 {[%emt 0:00:
21]} 60. d4 {[%emt 0:00:33]} cxd4 {[%emt 0:01:06]} 61. Qxd4 {[%emt 0:00:47]}
Qxd4+ {[%emt 0:00:51]} 62. Nxd4 {[%emt 0:00:02]} Rxe4 {[%emt 0:00:08]} 63. Nf5+
{[%emt 0:00:28]} Kg6 {[%emt 0:00:06]} 64. Nd6 {[%emt 0:00:56]} Rd4 {[%emt 0:00:
12]} 65. Nxf7 {[%emt 0:00:24]} g4 {[%emt 0:00:22]} 66. Re3 {[%emt 0:00:50]} Kg7
{[%emt 0:02:08]} 67. Re7 {[%emt 0:00:25]} Kf8 {[%emt 0:00:25]} 68. Rc7 {
[%emt 0:00:29]} Ke8 {[%emt 0:00:21]} 69. c5 {[%emt 0:00:30]} Nd5 {[%emt 0:00:
46]} 70. Nd6+ {[%emt 0:00:31]} Kd8 {[%emt 0:00:01]} 71. Ra7 {[%emt 0:00:31]}
Nf4 {[%emt 0:00:17]} 72. Rf7 {[%emt 0:00:28]} Ne2+ {[%emt 0:00:31]} 73. Kf2 {
[%emt 0:00:04]} Re5 {[%emt 0:00:57]} 74. Re1 {[%emt 0:01:04]} g3+ {[%emt 0:00:
11]} 75. Kf3 {[%emt 0:00:32]} Rxd6 {[%emt 0:00:50]} 76. cxd6 {[%emt 0:00:28]}
Nd4+ {[%emt 0:00:01]} 77. Kxg3 {[%emt 0:00:14]} Rxe1 {[%emt 0:00:05]} 78. b6 {
[%emt 0:00:36]} Rb1 {[%emt 0:01:42]} 79. b7 {[%emt 0:00:33]} Nf5+ {[%emt 0:00:
22]} 80. Rxf5 {[%emt 0:00:11]} Kd7 {[%emt 0:00:42]} 81. Rb5 {[%emt 0:00:11]}
1-0

[Event "FRA-ch 91st"]
[Site "Agen"]
[Date "2016.08.16"]
[Round "4"]
[White "Jolly, Jean Francois"]
[Black "Cornette, Matthieu"]
[Result "1-0"]
[ECO "C55"]
[WhiteElo "2361"]
[BlackElo "2581"]
[Annotator "Fischer,J"]
[PlyCount "45"]
[EventDate "2016.08.13"]
[EventType "tourn"]
[EventRounds "9"]
[EventCountry "FRA"]
[EventCategory "14"]
[SourceTitle "CBM 174"]
[Source "ChessBase"]
[SourceDate "2016.09.13"]
[SourceVersion "1"]
[SourceVersionDate "2016.09.13"]
[SourceQuality "1"]
[TimeControl "40/5400+30:1800+30"]

1. e4 {[%emt 0:00:03]} e5 {[%emt 0:00:00]} 2. Nf3 {[%emt 0:03:25]} Nc6 {
[%emt 0:00:00]} 3. Bc4 {[%emt 0:00:14]} Nf6 {[%emt 0:00:10]} 4. d3 {[%emt 0:00:
06]} Be7 {[%emt 0:02:10]} 5. O-O {[%emt 0:02:03]} O-O {[%emt 0:01:08]} 6. Re1 {
[%emt 0:10:05]} d6 {[%emt 0:00:32]} 7. c3 {[%emt 0:00:20]} Kh8 {[%emt 0:12:54]}
8. h3 {[%emt 0:09:59]} (8. Nbd2) 8... Nd7 $146 {[%emt 0:10:54]} (8... Ng8 9. d4
f5 10. dxe5 fxe4 11. Rxe4 Rxf3 12. gxf3 Bf5 13. Re1 Nxe5 14. Bf1 Qe8 15. f4
Qg6+ 16. Kh2 Bg4 17. Be2 Bxe2 18. Rxe2 Nf3+ 19. Kh1 Qh5 20. Kg2 Rf8 21. Qd3 Rf6
22. Qxf3 Rg6+ 23. Qg4 Rxg4+ 24. hxg4 Qd5+ {0-1 (24) Kuczynski,R (2483)
-Naiditsch,A (2639) Germany 2008}) 9. d4 {[%emt 0:04:32]} exd4 {[%emt 0:05:36]}
10. cxd4 {[%emt 0:01:10]} Nb6 {[%emt 0:00:05]} 11. Bb3 {[%emt 0:08:50]} d5 {
[%emt 0:05:57]} 12. Nc3 {[%emt 0:02:10]} dxe4 {[%emt 0:03:06]} 13. Nxe4 {
[%emt 0:00:11]} Bf5 {[%emt 0:00:38]} 14. Nc5 {[%emt 0:06:54]} Rb8 {[%emt 0:04:
18]} 15. Bf4 $14 {[%emt 0:03:06] Les pièces Blanches sont très actives} Nd5 {
[%emt 0:06:39]} (15... Na5 $5 {L'échange des B doit favoriser les Noirs} 16.
Bc2 Bxc2 17. Qxc2 Nd5) 16. Bg3 {[%emt 0:01:42]} Bg6 {[%emt 0:08:23]} 17. a3 {
[%emt 0:07:01]} Bh5 {[%emt 0:02:29]} 18. Rc1 {[%emt 0:01:18]} Bf6 {[%emt 0:06:
41]} 19. Nxb7 {[%emt 0:06:43]} Rxb7 {[%emt 0:00:48]} 20. Rxc6 {[%emt 0:00:07]}
Qd7 {[%emt 0:01:36]} 21. Rc5 $1 {[%emt 0:06:24]} c6 {[%emt 0:00:04]} 22. Ba4 {
[%emt 0:01:06]} Rc8 {[%emt 0:03:07]} 23. Bxc6 {[%emt 0:00:31] After 23...Rxc6
White plays 24.Rxd5 and because of the back rank mate Black cannot take the
rook - White is winning.} 1-0